[Event "3rd FIDE WCCC Rapid U10 2019"]
[Site "Minsk"]
[Date "2019.08.17"]
[Round "6.5"]
[White "Ryazanov, Sergey"]
[Black "Usov, Aleksandr E."]
[Result "0-1"]
[ECO "D01"]
[WhiteElo "1131"]
[BlackElo "1919"]
[Annotator "NA"]
[PlyCount "154"]
[EventDate "2019.08.16"]
[EventType "swiss"]
[EventCountry "BLR"]
[SourceTitle "playchess.com"]
[Source "ChessBase"]
[SourceQuality "1"]
[TimeControl "600+5"]

1. d4 {[%emt 0:00:00]} d5 {[%emt 0:00:00]} 2. Nc3 {[%emt 0:00:00]} Nf6 {[%emt 0:00:00]} 3. Bg5 {[%emt 0:00:00]} Bf5 {[%emt 0:00:06]} 4. Nf3 {[%emt 0:00:00]} e6 {[%emt 0:00:05]} 5. e3 {[%emt 0:00:00]} c5 {[%emt 0:00:01]} 6. Bb5+ Nc6 7. Ne5 {[%emt 0:00:05]} Qc7 {[%emt 0:00:02]} 8. Bxc6+ {[%emt 0:00:07]} bxc6 {[%emt 0:00:02]} 9. O-O {[%emt 0:00:18]} Bd6 {[%emt 0:00:05]} 10. f4 {[%emt 0:00:01]} cxd4 {[%emt 0:00:21]} 11. exd4 {[%emt 0:00:02]} h6 {[%emt 0:01:10]} 12. Bh4 {[%emt 0:00:24]} g5 {[%emt 0:00:15]} 13. Bg3 {[%emt 0:00:01]} gxf4 {[%emt 0:00:21]} 14. Bxf4 {[%emt 0:00:02]} O-O-O {[%emt 0:00:14]} 15. a3 {[%emt 0:00:17]} Ne4 {[%emt 0:00:34]} 16. Nxe4 {[%emt 0:00:55]} Bxe4 {[%emt 0:00:11]} 17. Qd2 {[%emt 0:00:01]} Rhg8 {[%emt 0:00:37]} 18. g3 {[%emt 0:00:10]} f6 {[%emt 0:00:20]} 19. Nd3 {[%emt 0:00:16]} e5 {[%emt 0:00:21]} 20. dxe5 {[%emt 0:00:28]} fxe5 {[%emt 0:00:04]} 21. Be3 {[%emt 0:00:18]} h5 {[%emt 0:00:30]} 22. Nc5 {[%emt 0:00:10]} Bxc5 {[%emt 0:00:33]} 23. Bxc5 {[%emt 0:00:02]} h4 {[%emt 0:00:00]} 24. Bf2 {[%emt 0:00:30]} hxg3 {[%emt 0:00:16]} 25. Bxg3 {[%emt 0:00:20]} Rd7 {[%emt 0:01:06]} 26. Rf6 {[%emt 0:00:20]} Rh7 {[%emt 0:00:28]} 27. Qc3 {[%emt 0:00:05]} d4 {[%emt 0:00:33]} 28. Qc5 {[%emt 0:00:34]} Rxh2 {[%emt 0:00:53]} 29. Rf8+ {[%emt 0:00:21]} Kb7 {[%emt 0:00:44]} 30. Qb4+ {[%emt 0:01:20]} Qb6 {[%emt 0:00:17]} 31. Rxg8 {[%emt 0:01:09]} Rh1+ {[%emt 0:00:52]} 32. Kf2 {[%emt 0:00:01]} Qxb4 {[%emt 0:00:08]} 33. axb4 {[%emt 0:00:05]} Rxa1 {[%emt 0:00:02]} 34. Bxe5 {[%emt 0:00:04]} Rd1 {[%emt 0:00:22]} 35. Rd8 {[%emt 0:00:20]} Bd5 {[%emt 0:00:37]} 36. c4 {[%emt 0:00:18]} Bxc4 {[%emt 0:00:38]} 37. Rxd4 Rc1 {[%emt 0:00:07]} 38. Rd7+ {[%emt 0:00:24]} Ka6 {[%emt 0:00:05]} 39. Rc7 {[%emt 0:00:15]} Bd5 {[%emt 0:00:08]} 40. Bd4 {[%emt 0:00:06]} Kb5 {[%emt 0:00:02]} 41. Rb7+ {[%emt 0:00:08]} Kc4 {[%emt 0:00:02]} 42. Bc3 {[%emt 0:00:42]} a6 {[%emt 0:00:11]} 43. Rb6 {[%emt 0:00:04]} Ra1 {[%emt 0:00:02]} 44. Ke2 {[%emt 0:00:16]} Kb3 {[%emt 0:00:05]} 45. Ke3 {[%emt 0:00:05]} Ra2 {[%emt 0:00:05]} 46. Kd4 {[%emt 0:00:08]} Ra1 {[%emt 0:00:03]} 47. Kc5 {[%emt 0:00:05]} Be4 {[%emt 0:00:05]} 48. Rb8 {[%emt 0:00:08]} Bf3 {[%emt 0:00:04]} 49. Ra8 {[%emt 0:00:10]} Bg2 {[%emt 0:00:09]} 50. Kb6 {[%emt 0:00:04]} Bf1 {[%emt 0:00:06]} 51. Kxc6 {[%emt 0:00:02]} Bg2+ {[%emt 0:00:00]} 52. Kb6 {[%emt 0:00:05]} Bxa8 {[%emt 0:00:02]} 53. Kc5 {[%emt 0:00:03]} Bf3 {[%emt 0:00:03]} 54. b5 {[%emt 0:00:02]} axb5 55. Kxb5 {[%emt 0:00:01]} Be2+ {[%emt 0:00:05]} 56. Kc5 {[%emt 0:00:02]} Ra4 {[%emt 0:00:01]} 57. Kd5 {[%emt 0:00:02]} Rc4 {[%emt 0:00:02]} 58. Ke5 {[%emt 0:00:03]} Bd1 {[%emt 0:00:01]} 59. Kd5 {[%emt 0:00:02]} Bc2 {[%emt 0:00:01]} 60. Ke5 {[%emt 0:00:02]} Ka4 {[%emt 0:00:01]} 61. Kd5 {[%emt 0:00:01]} Bb3 {[%emt 0:00:01]} 62. Ke5 {[%emt 0:00:02]} Kb5 {[%emt 0:00:01]} 63. Kf5 {[%emt 0:00:03]} Kc6 {[%emt 0:00:03]} 64. Ke5 {[%emt 0:00:01]} Rc5+ {[%emt 0:00:01]} 65. Kd4 {[%emt 0:00:01]} Rd5+ {[%emt 0:00:01]} 66. Ke3 {[%emt 0:00:01]} Kd6 {[%emt 0:00:01]} 67. Bb4+ {[%emt 0:00:03]} Ke5 {[%emt 0:00:01]} 68. Bc3+ {[%emt 0:00:01]} Kf5 {[%emt 0:00:01]} 69. Bd4 {[%emt 0:00:02]} Bc4 {[%emt 0:00:01]} 70. b4 {[%emt 0:00:10]} Bb5 {[%emt 0:00:01]} 71. Bc5 {[%emt 0:00:06]} Rd3+ {[%emt 0:00:02]} 72. Ke2 {[%emt 0:00:03]} Ke4 {[%emt 0:00:01]} 73. Kf2 {[%emt 0:00:01]} Rf3+ {[%emt 0:00:01]} 74. Kg2 {[%emt 0:00:01]} Kf4 {[%emt 0:00:01]} 75. Bd6+ {[%emt 0:00:01]} Kg4 {[%emt 0:00:02]} 76. Bc7 {[%emt 0:00:03]} Bc6 {[%emt 0:00:01]} 77. Kh2 {[%emt 0:00:14]} Rf1 {[%emt 0:00:03]} 0-1

[Event "3rd FIDE WCCC Rapid U10 2019"]
[Site "Minsk"]
[Date "2019.08.17"]
[Round "6.6"]
[White "Yonal, Timur"]
[Black "Rusanov, Ilya"]
[Result "1/2-1/2"]
[ECO "B40"]
[WhiteElo "1517"]
[BlackElo "1267"]
[Annotator "NA"]
[PlyCount "113"]
[EventDate "2019.08.16"]
[EventType "swiss"]
[EventCountry "BLR"]
[SourceTitle "playchess.com"]
[Source "ChessBase"]
[SourceQuality "1"]
[TimeControl "600+5"]

1. e4 {[%emt 0:00:00]} c5 {[%emt 0:00:00]} 2. Nf3 {[%emt 0:00:00]} e6 {[%emt 0:00:00]} 3. d4 {[%emt 0:00:00]} cxd4 {[%emt 0:00:00]} 4. Nxd4 {[%emt 0:00:01]} Nf6 {[%emt 0:00:03]} 5. Nc3 {[%emt 0:00:11]} Bb4 {[%emt 0:00:02]} 6. Qd3 {[%emt 0:00:16]} Bxc3+ {[%emt 0:00:23]} 7. bxc3 {[%emt 0:00:59]} a6 {[%emt 0:00:01]} 8. g3 {[%emt 0:00:09]} h6 {[%emt 0:00:03]} 9. Bg2 {[%emt 0:00:01]} Nc6 {[%emt 0:00:04]} 10. f4 {[%emt 0:00:08]} e5 {[%emt 0:00:16]} 11. Nf5 {[%emt 0:00:27]} O-O {[%emt 0:00:09]} 12. O-O {[%emt 0:00:29]} Ng4 {[%emt 0:00:45]} 13. Bf3 {[%emt 0:01:14]} Nf6 {[%emt 0:00:10]} 14. c4 {[%emt 0:01:43]} Qb6+ {[%emt 0:00:48]} 15. Be3 {[%emt 0:00:06]} Qc7 {[%emt 0:00:01]} 16. Qc3 {[%emt 0:01:30]} d6 {[%emt 0:00:18]} 17. Rad1 {[%emt 0:00:05]} Bxf5 {[%emt 0:00:04]} 18. exf5 {[%emt 0:00:13]} Rad8 {[%emt 0:00:14]} 19. g4 {[%emt 0:01:01]} exf4 {[%emt 0:00:37]} 20. Bxf4 {[%emt 0:00:02]} Ne5 {[%emt 0:00:05]} 21. Bxe5 {[%emt 0:01:44]} dxe5 {[%emt 0:00:03]} 22. Rxd8 {[%emt 0:00:52]} Rxd8 {[%emt 0:00:02]} 23. Re1 {[%emt 0:00:01]} e4 {[%emt 0:00:03]} 24. Be2 {[%emt 0:00:12]} Qf4 {[%emt 0:00:16]} 25. Qg3 {[%emt 0:00:30]} Qxg3+ 26. hxg3 {[%emt 0:00:02]} Rd2 {[%emt 0:00:08]} 27. Bd1 {[%emt 0:00:05]} Nxg4 {[%emt 0:00:08]} 28. Bxg4 {[%emt 0:00:03]} Rxc2 {[%emt 0:00:02]} 29. Rxe4 {[%emt 0:00:02]} Rxa2 {[%emt 0:00:02]} 30. Re7 {[%emt 0:00:12]} b5 {[%emt 0:00:12]} 31. cxb5 {[%emt 0:00:06]} axb5 32. Rb7 {[%emt 0:00:05]} Ra3 {[%emt 0:00:11]} 33. Kh2 {[%emt 0:00:08]} Rb3 {[%emt 0:00:02]} 34. Bh5 {[%emt 0:00:04]} Rb2+ {[%emt 0:00:05]} 35. Kh3 {[%emt 0:00:05]} g6 {[%emt 0:00:10]} 36. fxg6 {[%emt 0:00:02]} fxg6 {[%emt 0:00:02]} 37. Bxg6 {[%emt 0:00:01]} Rb4 {[%emt 0:00:08]} 38. Be8 {[%emt 0:00:08]} Rb2 {[%emt 0:00:22]} 39. Bxb5 {[%emt 0:00:07]} Rc2 {[%emt 0:00:06]} 40. Rb8+ {[%emt 0:00:03]} Kg7 {[%emt 0:00:04]} 41. Rb7+ {[%emt 0:00:01]} Kf6 {[%emt 0:00:02]} 42. Bd3 {[%emt 0:00:07]} Rc3 {[%emt 0:00:02]} 43. Bh7 {[%emt 0:00:10]} Rc4 {[%emt 0:00:15]} 44. Rb6+ {[%emt 0:00:04]} Kg5 {[%emt 0:00:05]} 45. Rg6+ {[%emt 0:00:05]} Kh5 {[%emt 0:00:07]} 46. Rg7 {[%emt 0:00:01]} Rh4+ {[%emt 0:00:04]} 47. Kg2 {[%emt 0:00:12]} Rh2+ {[%emt 0:00:02]} 48. Kf3 {[%emt 0:00:01]} Rf2+ {[%emt 0:00:02]} 49. Ke4 {[%emt 0:00:03]} Re2+ {[%emt 0:00:01]} 50. Kd5 {[%emt 0:00:02]} Re5+ {[%emt 0:00:02]} 51. Kd6 {[%emt 0:00:04]} Re6+ {[%emt 0:00:01]} 52. Kd5 {[%emt 0:00:02]} Re5+ {[%emt 0:00:02]} 53. Kc6 {[%emt 0:00:01]} Re6+ {[%emt 0:00:02]} 54. Kb7 {[%emt 0:00:02]} Rb6+ {[%emt 0:00:03]} 55. Kc8 {[%emt 0:00:02]} Rb8+ {[%emt 0:00:02]} 56. Kc7 {[%emt 0:00:19]} Rb7+ {[%emt 0:00:03]} 57. Kxb7 {[%emt 0:00:11]} 1/2-1/2

[Event "3rd FIDE WCCC Rapid U10 2019"]
[Site "Minsk"]
[Date "2019.08.17"]
[Round "7.1"]
[White "Samunenkov, Ihor"]
[Black "Vetokhin, Savva"]
[Result "1-0"]
[ECO "A45"]
[WhiteElo "1964"]
[BlackElo "2016"]
[Annotator "NA"]
[PlyCount "63"]
[EventDate "2019.08.16"]
[EventType "swiss"]
[EventCountry "BLR"]
[SourceTitle "playchess.com"]
[Source "ChessBase"]
[SourceQuality "1"]
[TimeControl "600+5"]

1. d4 {[%emt 0:00:00]} Nf6 {[%emt 0:00:00]} 2. g3 {[%emt 0:00:02]} g6 {[%emt 0:00:00]} 3. Bg2 {[%emt 0:00:02]} Bg7 {[%emt 0:00:00]} 4. e4 {[%emt 0:00:01]} d6 {[%emt 0:00:00]} 5. Nc3 {[%emt 0:00:01]} O-O {[%emt 0:00:01]} 6. Nge2 {[%emt 0:00:02]} c5 {[%emt 0:00:02]} 7. dxc5 {[%emt 0:00:03]} dxc5 {[%emt 0:00:01]} 8. Qxd8 {[%emt 0:00:02]} Rxd8 {[%emt 0:00:01]} 9. e5 {[%emt 0:00:01]} Nfd7 {[%emt 0:00:05]} 10. f4 {[%emt 0:00:02]} Na6 {[%emt 0:00:32]} 11. Nd5 {[%emt 0:01:20]} Kf8 {[%emt 0:00:09]} 12. Bd2 {[%emt 0:00:22]} Nb6 {[%emt 0:00:16]} 13. Nxb6 {[%emt 0:00:23]} axb6 {[%emt 0:00:01]} 14. O-O-O {[%emt 0:00:51]} Nc7 {[%emt 0:00:31]} 15. Nc3 {[%emt 0:00:35]} Rb8 {[%emt 0:00:49]} 16. Be3 {[%emt 0:00:12]} Bd7 {[%emt 0:00:07]} 17. a4 {[%emt 0:01:12]} Ke8 {[%emt 0:00:50]} 18. Rd2 {[%emt 0:01:24]} Be6 {[%emt 0:01:45]} 19. Rhd1 {[%emt 0:00:17]} Rxd2 {[%emt 0:00:03]} 20. Rxd2 {[%emt 0:00:02]} Bf8 {[%emt 0:01:25]} 21. a5 {[%emt 0:00:16]} bxa5 {[%emt 0:00:02]} 22. Bxc5 {[%emt 0:00:02]} Bd7 {[%emt 0:02:25]} 23. Bb6 {[%emt 0:01:31]} Ne6 {[%emt 0:00:32]} 24. Bxa5 {[%emt 0:00:38]} Ra8 {[%emt 0:00:02]} 25. b4 {[%emt 0:00:05]} Nd8 {[%emt 0:00:55]} 26. Bxd8 {[%emt 0:00:28]} Rxd8 {[%emt 0:00:04]} 27. Nd5 {[%emt 0:00:07]} Rb8 {[%emt 0:00:27]} 28. e6 {[%emt 0:00:21]} fxe6 {[%emt 0:00:44]} 29. Nc7+ Kd8 30. Nxe6+ {[%emt 0:00:05]} Ke8 {[%emt 0:00:06]} 31. Nxf8 {[%emt 0:00:06]} Bf5 {[%emt 0:00:00]} 32. Nxh7 {[%emt 0:00:04]} 1-0

[Event "3rd FIDE WCCC Rapid U10 2019"]
[Site "Minsk"]
[Date "2019.08.17"]
[Round "7.2"]
[White "Zverev, Lev"]
[Black "Koshulyan, Egor A."]
[Result "0-1"]
[ECO "B33"]
[WhiteElo "1881"]
[BlackElo "1872"]
[Annotator "NA"]
[PlyCount "122"]
[EventDate "2019.08.16"]
[EventType "swiss"]
[EventCountry "BLR"]
[SourceTitle "playchess.com"]
[Source "ChessBase"]
[SourceQuality "1"]
[TimeControl "600+5"]

1. e4 {[%emt 0:00:00]} c5 {[%emt 0:00:00]} 2. Nf3 {[%emt 0:00:00]} Nc6 {[%emt 0:00:00]} 3. d4 {[%emt 0:00:01]} cxd4 {[%emt 0:00:00]} 4. Nxd4 {[%emt 0:00:01]} Nf6 {[%emt 0:00:00]} 5. Nc3 {[%emt 0:00:02]} e5 {[%emt 0:00:00]} 6. Ndb5 {[%emt 0:00:01]} d6 {[%emt 0:00:01]} 7. Bg5 {[%emt 0:00:01]} a6 {[%emt 0:00:00]} 8. Na3 {[%emt 0:00:01]} Be6 {[%emt 0:00:01]} 9. Bxf6 {[%emt 0:00:36]} Qxf6 {[%emt 0:00:02]} 10. Nd5 {[%emt 0:00:05]} Qd8 {[%emt 0:00:02]} 11. Nc4 {[%emt 0:00:07]} b5 {[%emt 0:00:01]} 12. Nce3 {[%emt 0:00:01]} Be7 {[%emt 0:00:01]} 13. g3 {[%emt 0:00:03]} O-O {[%emt 0:00:08]} 14. Bg2 {[%emt 0:00:01]} Kh8 {[%emt 0:00:47]} 15. O-O {[%emt 0:00:03]} Rc8 {[%emt 0:00:10]} 16. c3 {[%emt 0:00:06]} Qe8 {[%emt 0:01:07]} 17. Qd3 {[%emt 0:00:14]} Bd8 {[%emt 0:00:13]} 18. Rad1 {[%emt 0:00:10]} Ne7 {[%emt 0:00:11]} 19. Rd2 {[%emt 0:02:45]} Rc5 {[%emt 0:00:16]} 20. Nb4 {[%emt 0:00:29]} a5 {[%emt 0:01:54]} 21. Qxd6 {[%emt 0:00:19]} Rc8 {[%emt 0:00:48]} 22. Nbd5 {[%emt 0:00:24]} Ng6 {[%emt 0:00:34]} 23. Qa3 {[%emt 0:00:09]} Qc6 {[%emt 0:00:36]} 24. h4 {[%emt 0:00:32]} Re8 {[%emt 0:00:06]} 25. Qb3 {[%emt 0:00:21]} Ne7 {[%emt 0:00:07]} 26. Qd1 {[%emt 0:00:06]} Bb6 {[%emt 0:00:33]} 27. Rd3 {[%emt 0:01:20]} Bxe3 {[%emt 0:01:17]} 28. Nxe3 {[%emt 0:00:07]} Bxa2 {[%emt 0:00:10]} 29. Rd6 {[%emt 0:00:24]} Qc5 {[%emt 0:00:14]} 30. Bh3 {[%emt 0:00:06]} Ra8 {[%emt 0:00:04]} 31. Qd2 {[%emt 0:01:09]} Bb3 {[%emt 0:00:06]} 32. Ra1 {[%emt 0:00:51]} a4 {[%emt 0:00:24]} 33. Rd7 {[%emt 0:00:15]} Qc6 {[%emt 0:00:09]} 34. Nd5 {[%emt 0:00:42]} Bxd5 {[%emt 0:00:38]} 35. exd5 {[%emt 0:00:06]} Qf6 {[%emt 0:00:01]} 36. d6 {[%emt 0:00:11]} Nc8 {[%emt 0:00:10]} 37. Rd1 {[%emt 0:00:10]} Nb6 {[%emt 0:00:06]} 38. Rb7 {[%emt 0:00:20]} Nc4 {[%emt 0:00:09]} 39. Qd5 {[%emt 0:00:14]} Nxb2 {[%emt 0:00:11]} 40. Rxf7 {[%emt 0:00:28]} Qxf7 {[%emt 0:00:19]} 41. Qxf7 {[%emt 0:00:01]} Nxd1 {[%emt 0:00:01]} 42. d7 {[%emt 0:00:04]} Rf8 {[%emt 0:00:04]} 43. Qd5 {[%emt 0:00:01]} Nxf2 {[%emt 0:00:03]} 44. Bg2 {[%emt 0:00:18]} Rad8 {[%emt 0:00:03]} 45. Qxb5 {[%emt 0:00:02]} a3 {[%emt 0:00:05]} 46. Qa4 {[%emt 0:00:01]} e4 {[%emt 0:00:15]} 47. Qxa3 {[%emt 0:00:03]} e3 {[%emt 0:00:03]} 48. Qe7 {[%emt 0:00:07]} Ng4 {[%emt 0:00:03]} 49. Bf3 {[%emt 0:00:08]} Nf6 {[%emt 0:00:11]} 50. Qxe3 {[%emt 0:00:06]} Rxd7 {[%emt 0:00:02]} 51. Kg2 {[%emt 0:00:03]} Rfd8 {[%emt 0:00:01]} 52. Be2 {[%emt 0:00:05]} Re8 {[%emt 0:00:04]} 53. Qf3 {[%emt 0:00:14]} Rd2 {[%emt 0:00:02]} 54. Kh3 {[%emt 0:00:01]} Rexe2 {[%emt 0:00:05]} 55. Qa8+ {[%emt 0:00:01]} Ne8 {[%emt 0:00:02]} 56. Qf3 {[%emt 0:00:03]} Rh2+ {[%emt 0:00:02]} 57. Kg4 Nf6+ 58. Kg5 {[%emt 0:00:03]} Rhe2 {[%emt 0:00:06]} 59. Qa8+ {[%emt 0:00:04]} Re8 {[%emt 0:00:01]} 60. Qf3 {[%emt 0:00:08]} Rd5+ {[%emt 0:00:16]} 61. Kf4 {[%emt 0:00:02]} Re4+ {[%emt 0:00:04]} 0-1

[Event "3rd FIDE WCCC Rapid U10 2019"]
[Site "Minsk"]
[Date "2019.08.17"]
[Round "7.3"]
[White "Usov, Aleksandr E."]
[Black "Boykov, Pavel"]
[Result "1-0"]
[ECO "B22"]
[WhiteElo "1919"]
[BlackElo "1643"]
[Annotator "NA"]
[PlyCount "183"]
[EventDate "2019.08.16"]
[EventType "swiss"]
[EventCountry "BLR"]
[SourceTitle "playchess.com"]
[Source "ChessBase"]
[SourceQuality "1"]
[TimeControl "600+5"]

1. e4 {[%emt 0:00:00]} c5 {[%emt 0:00:00]} 2. c3 {[%emt 0:00:00]} Nf6 {[%emt 0:00:01]} 3. e5 {[%emt 0:00:00]} Nd5 {[%emt 0:00:01]} 4. d4 {[%emt 0:00:01]} cxd4 {[%emt 0:00:04]} 5. Nf3 {[%emt 0:00:01]} Nc6 {[%emt 0:00:12]} 6. Bc4 {[%emt 0:00:01]} Nb6 {[%emt 0:00:10]} 7. Bb3 {[%emt 0:00:01]} e6 {[%emt 0:00:06]} 8. cxd4 {[%emt 0:00:02]} d6 {[%emt 0:00:05]} 9. exd6 {[%emt 0:00:07]} Bxd6 {[%emt 0:00:03]} 10. O-O {[%emt 0:00:02]} O-O {[%emt 0:00:02]} 11. Nc3 {[%emt 0:00:01]} Bd7 {[%emt 0:00:13]} 12. Bg5 {[%emt 0:00:06]} Be7 {[%emt 0:00:02]} 13. Be3 {[%emt 0:00:04]} Na5 {[%emt 0:00:14]} 14. d5 {[%emt 0:00:17]} Nxb3 {[%emt 0:00:10]} 15. Qxb3 {[%emt 0:00:04]} Nxd5 {[%emt 0:00:13]} 16. Nxd5 {[%emt 0:00:14]} exd5 {[%emt 0:00:01]} 17. Qxb7 {[%emt 0:00:32]} Rb8 {[%emt 0:00:33]} 18. Qxd5 {[%emt 0:00:45]} Be6 {[%emt 0:00:14]} 19. Qxd8 {[%emt 0:00:09]} Rfxd8 {[%emt 0:00:02]} 20. b3 {[%emt 0:00:15]} Bf6 {[%emt 0:00:29]} 21. Rad1 {[%emt 0:00:05]} a5 {[%emt 0:00:12]} 22. Bd4 {[%emt 0:00:07]} Be7 {[%emt 0:00:31]} 23. Bc3 {[%emt 0:00:15]} Rxd1 {[%emt 0:01:18]} 24. Rxd1 {[%emt 0:00:02]} Ra8 {[%emt 0:00:01]} 25. Nd4 {[%emt 0:00:11]} Bd7 {[%emt 0:00:31]} 26. Nc2 {[%emt 0:00:13]} Bf5 {[%emt 0:00:25]} 27. Ne3 {[%emt 0:00:03]} Be6 {[%emt 0:01:00]} 28. Nd5 {[%emt 0:00:14]} Bd8 {[%emt 0:00:01]} 29. Nf4 {[%emt 0:00:09]} Bf5 {[%emt 0:01:20]} 30. f3 {[%emt 0:00:46]} Bb6+ {[%emt 0:00:16]} 31. Kh1 {[%emt 0:00:09]} Rc8 {[%emt 0:00:56]} 32. Nd5 {[%emt 0:00:20]} Bc5 {[%emt 0:01:42]} 33. Bxa5 {[%emt 0:00:11]} h6 {[%emt 0:00:41]} 34. Rc1 {[%emt 0:00:10]} Be6 {[%emt 0:00:48]} 35. Nf4 {[%emt 0:00:11]} Bf5 {[%emt 0:00:11]} 36. b4 {[%emt 0:00:03]} Bd6 {[%emt 0:00:04]} 37. Rxc8+ {[%emt 0:00:03]} Bxc8 {[%emt 0:00:01]} 38. Ne2 {[%emt 0:00:09]} Be6 {[%emt 0:00:02]} 39. a3 {[%emt 0:00:03]} Kf8 {[%emt 0:00:01]} 40. Nd4 {[%emt 0:00:00]} Bd7 {[%emt 0:00:02]} 41. Bb6 {[%emt 0:00:10]} Ke8 {[%emt 0:00:07]} 42. Kg1 {[%emt 0:00:03]} g6 {[%emt 0:00:05]} 43. g3 {[%emt 0:00:05]} Bc8 {[%emt 0:00:06]} 44. Kf2 {[%emt 0:00:02]} Kd7 {[%emt 0:00:04]} 45. f4 {[%emt 0:00:03]} Ba6 {[%emt 0:00:06]} 46. b5 {[%emt 0:00:11]} Bb7 {[%emt 0:00:03]} 47. a4 {[%emt 0:00:01]} Bd5 {[%emt 0:00:05]} 48. a5 {[%emt 0:00:01]} Kc8 {[%emt 0:00:12]} 49. a6 {[%emt 0:00:17]} Kb8 {[%emt 0:00:07]} 50. Nc6+ {[%emt 0:00:08]} Ka8 {[%emt 0:00:07]} 51. Bd4 {[%emt 0:00:22]} Bc4 {[%emt 0:00:05]} 52. Na7 {[%emt 0:00:27]} Bb8 {[%emt 0:00:06]} 53. Nc8 {[%emt 0:00:28]} Bxb5 {[%emt 0:00:06]} 54. a7 {[%emt 0:02:05]} Bc7 {[%emt 0:00:01]} 55. Ne7 {[%emt 0:00:08]} Kb7 {[%emt 0:00:09]} 56. Nd5 {[%emt 0:00:01]} Bd8 {[%emt 0:00:05]} 57. Ke3 {[%emt 0:00:29]} Bc6 {[%emt 0:00:00]} 58. Nb4 {[%emt 0:00:09]} Bg2 {[%emt 0:00:03]} 59. Nd3 {[%emt 0:00:06]} Bb6 {[%emt 0:00:02]} 60. a8=B+ {[%emt 0:00:11]} Kxa8 {[%emt 0:00:04]} 61. Bxb6 {[%emt 0:00:02]} Kb7 {[%emt 0:00:02]} 62. Bd4 {[%emt 0:00:02]} Kc7 {[%emt 0:00:07]} 63. Ne5 {[%emt 0:00:03]} Bd5 {[%emt 0:00:01]} 64. Bc3 {[%emt 0:00:00]} Kd6 {[%emt 0:00:05]} 65. Kd4 {[%emt 0:00:01]} Ke6 {[%emt 0:00:03]} 66. Ke3 {[%emt 0:00:05]} Kf5 {[%emt 0:00:05]} 67. g4+ {[%emt 0:00:02]} Ke6 {[%emt 0:00:00]} 68. Nd3 {[%emt 0:00:02]} f5 {[%emt 0:00:08]} 69. g5 {[%emt 0:00:05]} hxg5 {[%emt 0:00:12]} 70. fxg5 {[%emt 0:00:08]} Bc6 {[%emt 0:00:01]} 71. Nf4+ {[%emt 0:00:05]} Kf7 {[%emt 0:00:02]} 72. Kd4 {[%emt 0:00:04]} Bf3 {[%emt 0:00:06]} 73. Ke5 {[%emt 0:00:01]} Bg4 {[%emt 0:00:05]} 74. Ne6 {[%emt 0:00:38]} Be2 {[%emt 0:00:08]} 75. Bb4 {[%emt 0:00:02]} Bc4 {[%emt 0:00:04]} 76. Nd8+ {[%emt 0:00:01]} Kg7 {[%emt 0:00:04]} 77. Kd6 {[%emt 0:00:06]} f4 {[%emt 0:00:12]} 78. Ne6+ {[%emt 0:00:05]} Kf7 {[%emt 0:00:08]} 79. Nxf4 {[%emt 0:00:01]} Bf1 {[%emt 0:00:04]} 80. h4 {[%emt 0:00:01]} Bc4 {[%emt 0:00:06]} 81. Bc3 {[%emt 0:00:01]} Bb3 {[%emt 0:00:03]} 82. Nd3 {[%emt 0:00:03]} Kg8 {[%emt 0:00:06]} 83. Ne5 {[%emt 0:00:05]} Bc2 {[%emt 0:00:02]} 84. Ke7 {[%emt 0:00:00]} Kg7 {[%emt 0:00:05]} 85. Ng4+ {[%emt 0:00:02]} Kg8 {[%emt 0:00:03]} 86. Nh6+ {[%emt 0:00:05]} Kh7 {[%emt 0:00:03]} 87. Kf8 {[%emt 0:00:02]} Bb3 {[%emt 0:00:06]} 88. Ng4 {[%emt 0:00:02]} Be6 {[%emt 0:00:12]} 89. Nf6+ {[%emt 0:00:01]} Kh8 {[%emt 0:00:01]} 90. Ne8+ Kh7 {[%emt 0:00:02]} 91. Bg7 {[%emt 0:00:04]} Bf7 {[%emt 0:00:13]} 92. Nf6# {[%emt 0:00:03]} 1-0

[Event "3rd FIDE WCCC Rapid U10 2019"]
[Site "Minsk"]
[Date "2019.08.17"]
[Round "7.4"]
[White "Novozhilov, Semen"]
[Black "Bukreev, Stanislav"]
[Result "1-0"]
[ECO "A43"]
[WhiteElo "1686"]
[BlackElo "1257"]
[Annotator "NA"]
[PlyCount "39"]
[EventDate "2019.08.16"]
[EventType "swiss"]
[EventCountry "BLR"]
[SourceTitle "playchess.com"]
[Source "ChessBase"]
[SourceQuality "1"]
[TimeControl "600+5"]

1. d4 {[%emt 0:00:00]} Nf6 {[%emt 0:00:00]} 2. Nf3 {[%emt 0:00:01]} c5 {[%emt 0:00:00]} 3. d5 {[%emt 0:00:06]} e6 {[%emt 0:00:01]} 4. Nc3 {[%emt 0:00:05]} exd5 {[%emt 0:00:16]} 5. Nxd5 {[%emt 0:00:02]} Nc6 {[%emt 0:00:38]} 6. Bg5 {[%emt 0:00:33]} Be7 {[%emt 0:00:17]} 7. Nxe7 {[%emt 0:00:03]} Qxe7 {[%emt 0:00:02]} 8. e3 {[%emt 0:00:22]} h6 {[%emt 0:00:13]} 9. Bh4 {[%emt 0:00:07]} g5 {[%emt 0:01:02]} 10. Bg3 {[%emt 0:00:07]} d5 {[%emt 0:00:18]} 11. Be2 {[%emt 0:00:33]} Bf5 {[%emt 0:00:33]} 12. c3 {[%emt 0:00:45]} Ne4 {[%emt 0:03:29]} 13. Qxd5 {[%emt 0:01:23]} Bg6 {[%emt 0:00:48]} 14. Bb5 {[%emt 0:00:43]} Rc8 {[%emt 0:01:03]} 15. Ne5 {[%emt 0:00:29]} Nxg3 16. hxg3 Qc7 {[%emt 0:01:15]} 17. Rd1 {[%emt 0:01:20]} O-O {[%emt 0:01:04]} 18. Rxh6 {[%emt 0:01:23]} Nxe5 {[%emt 0:00:20]} 19. f4 {[%emt 0:00:14]} Kg7 {[%emt 0:00:01]} 20. Rh1 {[%emt 0:00:28] time} 1-0